bitfinex-derivatives/quotes_ETHF0:USTF0_20250807
["timestamp","ask_amount","ask_price","bid_price","bid_amount"]
[1754566361935,0.52329,3821.3,3820.8,3.2078]
[1754566361936,2.5251,3821.2,3821.1,4.0583]
[1754566362135,3.2547,3821.2,3821.1,3.4064]
[1754566362338,3.2547,3821.2,3821.1,2.5059]
[1754566362639,3.9209,3821.2,3821.1,0.8664]
[1754566362839,3.9209,3820.9,3820.8,3.2078]
[1754566363029,3.1913,3820.9,3820.8,5.7478]
[1754566363337,2.6487,3820.9,3820.8,7.2661]
[1754566363935,2.6487,3820.9,3820.8,4.0742]
[1754566364134,3.3783,3820.9,3820.8,5.5288]
[1754566364339,3.3783,3820.9,3820.8,6.1468]
[1754566364640,1.6604,3820.5,3820.4,3.2078]
[1754566364839,3.4567,3820.5,3820.4,3.2078]
[1754566365142,1.0568,3820.1,3820.0,3.7619]
[1754566365336,2.7271,3820.1,3820.0,6.6142]
[1754566365633,3.2078,3820.8,3820.2,4.58172]
[1754566365634,2.45432752,3820.3,3820.2,4.58172]
[1754566366538,0.78122752,3820.3,3820.2,2.321]
[1754566366743,1.99692752,3820.3,3820.2,4.0583]
[1754566366930,1.6604,3820.1,3820.0,3.73125]
[1754566367132,3.50832752,3820.1,3820.0,7.78955]
[1754566367435,0.78122752,3820.1,3820.0,7.78955]
[1754566369040,0.78122752,3820.1,3820.0,7.78956]
[1754566370343,1.83802752,3820.1,3820.0,7.78956]
[1754566370944,0.78122752,3820.1,3820.0,7.78956]
[1754566371141,1.39667302,3820.4,3820.3,2.16292]
[1754566371337,0.77591316,3820.4,3820.3,4.58172]
[1754566371533,0.77591316,3820.4,3820.3,2.29032]
[1754566371843,4.23261316,3820.4,3820.3,2.29032]
[1754566372044,4.23261316,3820.4,3820.3,3.46242]
[1754566372648,4.23261316,3820.4,3820.3,3.92982]
[1754566372840,3.50301316,3820.4,3820.3,4.58172]
[1754566373045,0.77591316,3820.4,3820.3,4.80316731]
[1754566376144,2.1108,3820.6,3820.5,2.16289]
[1754566376446,2.8404,3820.6,3820.5,4.15123731]
[1754566376644,2.7271,3820.6,3820.5,0.74483731]
[1754566376844,3.4567,3820.6,3820.5,0.74483731]
[1754566377244,3.4567,3820.6,3820.5,1.61123731]
[1754566377446,3.4567,3820.6,3820.5,1.08784731]
[1754566377647,4.85337302,3820.6,3820.5,0.22144731]
[1754566378250,3.4567,3820.6,3820.5,0.22144731]
[1754566379851,4.86657155,3820.6,3820.5,0.22144731]
[1754566380152,1.0167,3820.2,3820.1,0.52344]
[1754566380346,2.87327155,3820.6,3820.5,0.52339]
[1754566380647,4.05517155,3820.6,3820.5,4.28059255]
[1754566381048,4.78457155,3820.6,3820.5,1.08519255]
[1754566381248,4.78457155,3820.6,3820.5,0.24539255]
[1754566381553,3.3747,3820.6,3820.5,0.24539255]
[1754566381848,3.1293,3820.1,3820.0,3.2078]
[1754566382152,2.1293,3820.0,3819.9,1.78222071]
[1754566382740,2.1293,3820.0,3819.9,0.94242071]
[1754566382942,3.53914577,3820.0,3819.9,0.28380071]
[1754566383141,3.53914577,3820.0,3819.3,0.8398]
[1754566383142,0.73747842,3820.0,3819.3,4.0352]
[1754566383446,0.7679,3819.7,3819.6,2.97391]
[1754566383641,1.50537842,3819.7,3819.6,2.97391]
[1754566383843,1.50537842,3819.7,3819.6,4.55871]
[1754566384455,0.73747842,3819.7,3819.6,4.55871]
[1754566386252,1.50537842,3819.7,3819.6,4.55871]
[1754566387054,1.50537842,3819.7,3819.6,2.26771]
[1754566387253,0.7679,3819.7,3819.6,2.26771]
[1754566387442,0.7679,3819.7,3819.6,3.87831]
[1754566387647,0.7679,3819.7,3819.6,4.55871]
[1754566387853,0.73747842,3819.7,3819.6,4.55871]
[1754566388052,1.17077842,3819.7,3819.1,3.2078]
[1754566388254,1.17077842,3819.7,3819.0,0.8398]
[1754566388255,0.7679,3819.1,3819.0,2.0045]
[1754566388451,0.3346,3819.1,3819.0,3.0386]
[1754566388651,0.73747842,3819.5,3819.4,4.55874]
[1754566388652,0.4333,3819.5,3819.4,4.55874]
[1754566388954,1.15679767,3819.5,3819.4,4.0352]
[1754566389152,0.4333,3819.0,3818.9,0.5236]
[1754566389449,3.2078,3819.6,3818.7,3.2078]
[1754566389450,0.52363,3818.8,3818.7,3.2078]
[1754566389653,0.7679,3818.8,3818.7,4.0476]
[1754566389854,0.7679,3818.8,3818.4,1.7442]
[1754566389855,0.7679,3818.5,3818.4,1.7442]
[1754566390044,0.7679,3818.5,3818.4,0.8398]
[1754566390247,0.7679,3818.2,3818.1,2.515]
[1754566390451,0.7679,3818.2,3818.1,3.3548]
[1754566390854,0.7679,3818.2,3818.1,4.0352]
[1754566391156,0.3346,3818.6,3818.4,0.52367]
[1754566391346,0.4333,3818.3,3818.2,0.5765]
[1754566391545,0.7679,3818.2,3818.1,2.00462]
[1754566391752,0.7679,3818.2,3818.1,3.87852]
[1754566392858,0.4333,3818.3,3818.2,2.13431]
[1754566393051,0.7679,3818.3,3818.1,0.52371]
[1754566393356,0.7679,3818.0,3817.9,3.1308]
[1754566393552,0.7679,3818.0,3817.9,4.0352]
[1754566394354,0.7679,3818.0,3817.9,3.3548]
[1754566394950,0.7679,3818.0,3817.9,4.0352]
[1754566395959,0.4333,3818.0,3817.9,0.8398]
[1754566396152,0.7651,3818.0,3817.9,3.3548]
[1754566396353,0.7651,3818.0,3817.9,4.0352]
[1754566396654,0.7651,3818.0,3817.9,3.3548]
[1754566397252,0.7651,3818.0,3817.9,2.9136]
[1754566397653,0.7651,3818.0,3817.9,3.43735]
[1754566397854,0.7651,3818.3,3818.2,1.6106]
[1754566398054,0.3318,3819.0,3818.2,2.4504]
[1754566398353,0.9569,3819.0,3818.9,2.9136]
[1754566398553,0.7651,3818.4,3818.3,0.8398]
[1754566398752,3.73145,3818.7,3818.2,0.52371]
[1754566398955,0.7651,3818.6,3818.5,1.6106]
[1754566399153,0.7651,3818.6,3818.5,3.3548]
[1754566399353,0.7651,3818.6,3818.5,4.0352]
[1754566399554,1.28875,3818.6,3818.5,4.0352]
[1754566399760,0.7651,3818.6,3818.5,4.0352]
[1754566400458,0.7651,3818.6,3818.5,3.3548]
[1754566400861,0.52371,3818.2,3818.0,2.515]
[1754566401055,1.28881,3818.2,3818.1,0.8398]
[1754566401862,1.28881,3818.2,3818.1,1.7442]
[1754566402363,3.2078,3818.3,3817.8,1.1694]
[1754566402554,0.7651,3818.0,3817.9,4.0352]
[1754566402754,1.28884,3818.0,3817.9,4.0352]
[1754566403759,3.5396,3818.3,3817.9,4.0352]
[1754566403957,1.28882,3818.2,3818.1,1.0177]
[1754566404159,1.28882,3818.2,3818.1,2.5379]
[1754566404463,0.7651,3818.2,3818.1,2.5379]
[1754566405060,0.4333,3817.6,3817.5,0.8398]
[1754566405269,0.7651,3817.6,3817.5,0.8398]
[1754566405661,0.7651,3817.6,3817.5,1.4163]
[1754566405860,0.7651,3817.6,3817.5,1.8575]
[1754566406060,0.7651,3817.6,3817.5,2.5379]
[1754566406758,0.7651,3817.6,3817.5,3.1308]
[1754566407266,0.7651,3817.6,3817.5,4.0352]
[1754566407966,0.7651,3817.6,3817.5,3.3548]
[1754566408267,0.52387,3817.1,3816.6,3.2078]
[1754566408467,0.7651,3817.0,3816.9,1.59566142]
[1754566410766,0.7651,3817.0,3816.9,0.75586142]
[1754566412056,0.7651,3817.0,3816.9,1.27975142]
[1754566412259,0.7651,3817.0,3816.9,0.43476142]
[1754566412464,19.1181,3817.0,3816.9,1.28666142]
[1754566412663,1.47891325,3817.0,3816.9,2.20136142]
[1754566412863,19.1191,3817.0,3816.9,4.53076142]
[1754566413061,1.47891325,3817.0,3816.9,4.53076142]
[1754566413261,0.71381325,3817.1,3817.0,4.61987]
[1754566413472,0.71381325,3817.1,3817.0,3.07247]
[1754566413768,0.71381325,3817.1,3817.0,4.61987]
[1754566414162,21.5588,3817.3,3817.2,2.14074]
[1754566414364,22.27061325,3817.3,3817.2,4.61984]
[1754566414759,19.06281325,3817.3,3817.2,4.61984]
[1754566414971,0.71381325,3817.3,3817.2,4.61984]
[1754566415161,18.35,3817.6,3817.5,2.1407]
[1754566415362,19.064104,3817.6,3817.5,4.6198]
[1754566415759,0.714104,3817.6,3817.5,4.6198]
[1754566415962,3.2078,3817.7,3817.6,2.14069]
[1754566416159,0.714104,3817.9,3817.8,1.07966]
[1754566416362,0.714104,3817.9,3817.8,3.90726]
[1754566416566,0.714104,3817.9,3817.8,4.61976]
[1754566416772,19.056104,3817.9,3817.8,4.61976]
[1754566417679,0.714104,3817.9,3817.8,4.61976]
[1754566417867,19.055104,3817.9,3817.7,0.52376]
[1754566418171,0.714104,3817.8,3817.7,1.37566]
[1754566418371,0.714104,3817.8,3817.7,3.90726]
[1754566418574,0.714104,3817.8,3817.7,4.61976]
[1754566418775,19.050104,3817.8,3817.7,4.61976]
[1754566419070,19.050104,3817.8,3817.7,4.096]
[1754566419674,19.050104,3817.8,3817.7,3.3835]
[1754566420770,19.050104,3817.8,3817.7,4.096]
[1754566421766,19.050104,3817.8,3817.4,3.2078]
[1754566421972,19.031104,3817.7,3817.6,2.3294]
[1754566422468,19.031104,3817.7,3817.6,3.1813]
[1754566422768,19.031104,3817.7,3817.6,4.096]
[1754566422975,22.238904,3817.7,3817.6,0.8519]
[1754566423167,0.52383,3817.4,3817.3,0.8519]
[1754566423368,0.52384,3817.3,3816.9,2.05166142]
[1754566423573,18.85786,3817.2,3817.0,1.4706]
[1754566423773,0.714104,3817.1,3817.0,2.5316]
[1754566423974,0.52387,3817.0,3816.9,0.43476142]
[1754566425478,0.52387,3817.0,3816.9,1.28666142]
[1754566425873,18.86487,3817.0,3816.9,1.28666142]
[1754566426073,1.237974,3817.0,3816.9,1.28666142]
[1754566426372,18.85787,3817.0,3816.9,1.28666142]
[1754566426569,19.571974,3817.0,3816.9,1.28666142]
[1754566426772,19.568974,3817.0,3816.9,3.81826142]
[1754566427671,0.714104,3817.0,3816.9,3.81826142]
[1754566427876,3.2078,3817.3,3816.9,3.81826142]
[1754566427877,0.714104,3817.2,3816.9,5.05463142]
[1754566428078,0.714104,3817.2,3817.1,1.6169]
[1754566428376,3.921904,3817.3,3817.2,4.096]
[1754566428574,24.75697158,3817.3,3817.2,4.096]
[1754566428777,20.139804,3817.3,3817.2,4.096]
[1754566429072,1.809804,3817.3,3817.2,4.096]
[1754566429467,23.346604,3817.3,3817.2,4.096]
[1754566430477,24.75597158,3817.3,3817.2,4.096]
[1754566430681,25.27980158,3817.3,3817.2,4.096]
[1754566430875,24.75597158,3817.3,3817.2,4.096]
[1754566431071,23.346604,3817.3,3817.2,4.096]
[1754566432680,4.370304,3817.3,3817.2,4.096]
[1754566432880,20.44460588,3817.3,3817.2,4.096]
[1754566433082,19.034104,3817.3,3817.2,4.096]
[1754566434778,0.714104,3817.3,3817.2,4.096]
[1754566435080,1.809804,3817.9,3817.8,4.096]
[1754566435380,20.129804,3817.9,3817.8,4.096]
[1754566437377,0.52377,3817.8,3817.5,0.9147]
[1754566437684,20.128804,3817.7,3817.6,3.3835]
[1754566438676,20.128804,3817.7,3817.6,0.8519]
[1754566439182,1.62952,3817.4,3817.3,1.8203]
[1754566439380,19.94852,3817.4,3817.3,3.0588]
[1754566439581,20.662624,3817.4,3817.3,3.0588]
[1754566440481,23.870424,3817.4,3817.3,3.0588]
[1754566440875,23.870424,3817.4,3816.9,0.43476142]
[1754566440876,0.52385,3817.2,3816.9,0.43476142]
[1754566441179,18.319,3817.1,3817.0,4.2056]
[1754566441678,0.6736,3817.3,3817.2,2.5684]
[1754566441879,1.62948,3817.7,3817.6,2.3654]
[1754566442185,20.66525527,3817.7,3817.6,2.3654]
[1754566442482,20.66525527,3817.7,3817.6,4.2056]
[1754566442683,1.82347527,3817.7,3817.6,4.2056]
[1754566442979,20.14147527,3817.7,3817.6,4.2056]
[1754566443371,1.1057,3817.2,3817.1,2.5974]
[1754566443578,19.4237,3817.2,3817.1,4.2056]
[1754566443776,0.71777527,3817.2,3817.1,4.2056]
[1754566443974,1.6286,3817.6,3817.5,1.6628]
[1754566444180,2.34637527,3817.6,3817.5,4.2056]
[1754566444381,20.66437527,3817.6,3817.5,4.2056]
[1754566444683,20.66527527,3817.6,3817.5,4.2056]
[1754566444885,20.14057527,3817.6,3817.5,4.2056]
[1754566445276,20.14147527,3817.6,3817.5,4.2056]
[1754566445879,20.14147527,3817.6,3817.0,3.503]
[1754566445880,0.4321,3817.1,3817.0,3.503]
[1754566446085,19.4237,3817.1,3817.0,4.2056]
[1754566446280,20.14147527,3817.1,3817.0,4.2056]
[1754566446476,1.62957,3817.0,3816.9,0.43476142]
[1754566446678,2.34734527,3817.0,3816.9,0.43476142]
[1754566446882,0.52391,3816.7,3816.6,2.0961]
[1754566447179,0.52391,3816.7,3816.1,0.9346]
[1754566447180,0.52398,3816.2,3816.1,0.9346]
[1754566447388,18.9946,3816.2,3816.1,3.3]
[1754566447580,19.71264353,3816.2,3816.1,3.3]
[1754566447778,19.71264353,3816.2,3816.1,4.2056]
[1754566448285,18.9946,3816.2,3816.1,4.2056]
[1754566448487,19.71242202,3816.2,3816.1,4.2056]
[1754566448785,19.71242202,3816.2,3815.6,2.5428]
[1754566448987,0.52402,3816.0,3815.9,4.2056]
[1754566449182,3.2078,3816.3,3816.2,3.3]
[1754566449380,21.9485,3816.3,3816.2,4.2056]
[1754566449585,22.92622202,3816.3,3816.2,4.2056]
[1754566449885,22.92587319,3816.3,3816.2,1.8402]
[1754566450081,22.92587319,3816.3,3816.2,2.446]
[1754566450277,22.92587319,3816.3,3816.2,0.9056]
[1754566450681,22.92787319,3816.3,3816.2,4.2056]
[1754566451080,3.92527319,3816.3,3816.2,4.2056]
[1754566451385,16.7037,3816.3,3816.2,2.18678]
[1754566451790,16.7037,3816.3,3816.2,4.72958]
[1754566452090,16.7037,3816.3,3816.2,4.2056]
[1754566452591,3.2078,3816.8,3816.7,4.2056]
[1754566452789,22.25157665,3816.8,3816.5,0.52393]
[1754566452985,20.72257018,3816.7,3816.6,2.5974]
[1754566453178,18.327,3816.7,3815.9,3.2078]
[1754566453384,2.20273,3816.6,3816.5,1.6628]
[1754566453584,2.20273,3816.6,3816.5,4.2056]
[1754566453789,2.91954131,3816.6,3816.5,4.2056]
[1754566454691,0.71681131,3816.6,3816.5,4.2056]
[1754566454989,20.0108,3816.6,3816.5,4.2056]
[1754566455192,20.72761131,3816.6,3816.5,4.2056]
[1754566455387,0.71681131,3816.6,3816.5,4.2056]
[1754566455587,18.326,3816.6,3816.5,4.2056]
[1754566456295,19.3312,3816.6,3816.5,4.2056]
[1754566456486,20.0048,3816.6,3816.5,4.2056]
[1754566456793,18.7572,3816.6,3816.5,4.2056]
[1754566457688,3.2078,3816.8,3816.5,1.6628]
[1754566457896,3.92444237,3816.8,3816.7,4.2056]
[1754566458094,21.5278,3816.8,3816.7,4.2056]
[1754566458292,22.24444237,3816.8,3816.7,4.2056]
[1754566458488,22.81844237,3816.8,3816.7,4.2056]
[1754566458687,23.92324237,3816.8,3816.7,4.2056]
[1754566460495,24.81304237,3816.8,3816.7,3.503]
[1754566460691,23.92324237,3816.8,3816.7,4.2056]
[1754566460988,3.92444237,3816.8,3816.7,4.2056]
[1754566461300,22.533,3816.8,3816.7,4.2056]
[1754566461596,19.03664237,3816.8,3816.7,4.2056]
[1754566461990,19.9988,3816.8,3816.7,4.2056]
[1754566462694,20.8886,3816.8,3816.7,3.503]
[1754566462887,19.9988,3816.8,3816.7,3.503]
[1754566463095,19.9988,3816.8,3816.7,4.2056]
[1754566463697,20.8886,3816.8,3816.7,4.2056]
[1754566464296,20.8886,3816.8,3816.7,3.503]
[1754566464598,21.6049687,3816.8,3816.7,3.503]
[1754566465885,1.7215687,3816.8,3816.7,4.2056]
[1754566466084,19.9988,3816.8,3816.7,4.2056]
[1754566466289,20.7151687,3816.8,3816.7,4.2056]
[1754566468594,20.7151687,3816.8,3816.7,3.503]
[1754566468993,20.7151687,3816.8,3816.7,4.2056]
[1754566469192,19.4675687,3816.8,3816.7,4.2056]
[1754566469395,3.2078,3817.5,3817.1,0.52385]
[1754566469596,3.2078,3817.5,3817.4,3.9908]
[1754566469796,21.5268,3817.5,3817.4,3.9908]
[1754566470202,22.1056,3817.5,3817.4,3.9908]
[1754566470596,19.3562,3817.5,3817.4,3.9908]
[1754566471798,18.319,3817.5,3817.4,3.9908]
[1754566472194,18.8978,3817.5,3817.4,3.9908]
[1754566472396,19.3562,3817.5,3817.4,3.9908]
[1754566472597,20.0148,3817.5,3817.4,3.9908]
[1754566474104,4.51715,3818.0,3817.1,0.52385]
[1754566474105,3.2078,3818.0,3817.9,3.9908]
[1754566474298,18.317,3818.0,3817.9,1.6092]
[1754566474900,18.317,3818.0,3817.9,3.9908]
[1754566475199,4.9036,3818.9,3818.8,1.6092]
[1754566475396,24.0607,3818.9,3818.8,3.9908]
[1754566476803,5.7447,3818.9,3818.8,3.9908]
[1754566477003,24.0607,3818.9,3818.8,3.9908]
[1754566477497,5.7447,3818.9,3818.8,3.9908]
[1754566477702,24.0607,3818.9,3818.8,3.9908]
[1754566478095,5.7447,3818.9,3818.8,3.9908]
[1754566478508,24.0587,3818.9,3818.8,3.9908]
[1754566479007,22.559,3818.9,3818.8,3.9908]
[1754566479505,3.2078,3818.9,3818.8,3.9908]
[1754566479906,3.2078,3819.3,3819.2,1.6092]
[1754566480102,21.5208,3819.3,3819.2,3.9908]
[1754566480308,4.9036,3819.8,3819.7,1.0207]
[1754566480502,5.7447,3819.8,3819.7,3.9908]
[1754566480707,24.0577,3819.8,3819.7,3.9908]
[1754566481509,24.77460526,3819.8,3819.7,3.9908]
[1754566481704,23.93350526,3819.8,3819.7,3.9908]
[1754566481904,24.77460526,3819.8,3819.7,3.9908]
[1754566482111,24.0577,3819.8,3819.7,3.9908]
[1754566482711,24.0577,3819.8,3819.7,3.305]
[1754566483405,24.0577,3819.8,3819.7,3.9908]
[1754566485013,5.7447,3819.8,3819.7,3.9908]
[1754566485218,24.0527,3819.8,3819.7,3.9908]
[1754566486125,1.8783,3819.3,3819.2,3.1505]
[1754566486318,20.8439,3819.3,3819.2,3.1505]
[1754566486719,20.8439,3819.3,3819.2,3.9908]
[1754566487227,24.0517,3819.3,3819.2,1.6092]
[1754566487526,3.2078,3819.3,3819.2,3.9908]
[1754566488025,18.305,3819.3,3819.2,3.9908]
[1754566489022,20.0008,3819.3,3819.2,3.9908]
[1754566489334,20.8419,3819.3,3819.2,2.4495]
[1754566489923,20.8419,3819.3,3819.2,1.4408]
[1754566490119,0.5788,3818.9,3818.8,1.2743]
[1754566490431,20.8419,3818.9,3818.8,3.9908]
[1754566490625,20.8419,3818.9,3818.8,2.4495]
[1754566490927,20.8419,3818.9,3818.8,2.0293]
[1754566491127,20.8419,3818.9,3818.8,1.4408]
[1754566493429,1.6958,3818.3,3818.2,3.9908]
[1754566493633,19.3402,3818.3,3818.2,3.9908]
[1754566494334,19.9988,3818.3,3818.2,3.9908]
[1754566494633,20.8399,3818.3,3818.2,3.9908]
[1754566495024,18.303,3818.3,3818.2,3.9908]
[1754566495735,0.52368,3818.5,3818.2,1.6092]
[1754566495936,18.302,3818.3,3818.2,1.6092]
[1754566496338,18.302,3818.3,3818.2,3.9908]
[1754566500434,0.52366,3818.7,3818.6,1.5607]
[1754566500637,18.82466,3818.7,3818.6,3.3079]
[1754566500838,0.71680487,3818.7,3818.6,3.9569]
[1754566501141,18.301,3818.8,3818.7,3.9569]
[1754566501837,0.52363,3818.9,3818.8,3.9569]
[1754566502038,18.82463,3818.9,3818.8,3.9569]
[1754566502233,20.53646182,3818.9,3818.8,3.9569]
[1754566502532,20.60193182,3818.9,3818.1,3.2078]
[1754566502732,0.71703182,3818.8,3818.1,7.1647]
[1754566502934,3.10235,3818.7,3818.6,1.5607]
[1754566503139,3.10235,3818.7,3818.6,3.9569]
[1754566503639,2.5787,3818.7,3818.6,3.9569]
[1754566504235,21.59573182,3818.7,3818.6,3.9569]
[1754566504732,0.71703182,3818.7,3818.6,3.9569]
[1754566504932,18.299,3818.9,3818.8,1.0077]
[1754566505138,19.56973182,3818.9,3818.8,3.9569]
[1754566505442,21.59473182,3818.9,3818.8,3.9569]
[1754566505839,21.59473182,3818.9,3818.8,6.0517]
[1754566506731,0.71703182,3818.9,3818.8,6.0517]
[1754566506930,3.2078,3819.5,3819.4,3.9569]
[1754566507134,21.5058,3819.5,3819.4,3.9569]
[1754566507732,22.5006,3819.5,3819.4,3.9569]
[1754566507933,4.2026,3819.5,3819.4,3.9569]
[1754566508133,22.4996,3819.5,3819.4,3.9569]
[1754566508334,3.2078,3819.5,3819.4,2.8721]
[1754566508631,1.0,3820.0,3819.9,3.9569]
[1754566509134,3.2078,3820.5,3820.4,3.2119]
[1754566510443,3.6489,3820.5,3820.4,3.2119]
[1754566510641,4.8883,3820.5,3820.4,3.2119]
[1754566512139,6.3871,3820.5,3820.4,3.2119]
[1754566512546,7.1828,3820.5,3820.4,3.2119]
[1754566513341,6.3871,3820.5,3820.4,3.2119]
[1754566513547,7.1828,3820.5,3820.4,2.8721]
[1754566513845,2.2811,3820.0,3819.9,3.73537]
[1754566514142,1.2811,3820.0,3819.9,3.73537]
[1754566514648,18.7311,3820.4,3820.3,3.73533]
[1754566514839,18.7311,3820.4,3820.3,3.2119]
[1754566515045,19.9705,3820.4,3820.3,3.2119]
[1754566517139,1.6805,3820.4,3820.3,3.2119]
[1754566517643,19.9675,3820.4,3820.3,3.2119]
[1754566517842,18.7281,3820.4,3820.3,3.2119]
[1754566518148,19.4138,3820.4,3820.3,3.2119]
[1754566518347,18.7281,3820.4,3820.3,3.2119]
[1754566519346,0.4411,3820.4,3820.3,3.2119]
[1754566519650,18.7281,3820.4,3820.3,3.2119]
[1754566520739,0.4411,3820.4,3820.3,3.2119]
[1754566521045,21.372,3820.4,3820.3,1.7472]
[1754566521346,1.9927,3820.2,3820.1,3.73535]
[1754566521847,0.5537,3819.6,3819.5,1.4528]
[1754566522151,2.1878,3819.4,3819.3,6.0799]
[1754566522354,3.086,3819.4,3819.3,6.0799]
[1754566522944,3.086,3819.4,3819.3,3.2078]
[1754566523652,3.086,3819.4,3819.3,6.0799]
[1754566524249,1.307,3819.4,3818.8,5.3026]
[1754566524445,2.1878,3818.9,3818.8,8.1747]
[1754566524655,3.086,3818.9,3818.8,8.1747]
[1754566526463,3.086,3818.9,3818.8,2.0948]
[1754566526848,3.086,3818.9,3818.8,4.1006]
[1754566527151,3.086,3818.9,3818.8,4.9669]
[1754566527354,3.086,3818.9,3818.8,2.0948]
[1754566529447,1.7878,3818.0,3817.8,0.52377]
[1754566529647,1.7878,3818.0,3817.2,1.30964]
[1754566529648,0.7055,3817.7,3817.4,0.8279]
[1754566529951,2.2455,3817.5,3817.4,2.2461]
[1754566530146,20.5295,3817.5,3817.4,1.6004]
[1754566530356,20.5295,3817.5,3817.2,3.2078]
[1754566530357,20.5295,3817.5,3817.2,0.8279]
[1754566530553,1.2365,3817.3,3817.2,3.82775]
[1754566530755,2.7968,3817.3,3817.2,3.82775]
[1754566530955,2.0123,3817.3,3817.2,4.47345]
[1754566531253,1.1575,3817.3,3817.2,4.47345]
[1754566531955,1.1575,3817.3,3817.2,3.9496]
[1754566532555,1.0033,3817.3,3817.2,3.9496]
[1754566533149,19.2893,3817.3,3817.2,3.9496]
[1754566533949,18.8592,3817.3,3817.2,3.9496]
[1754566534157,18.286,3817.3,3817.2,3.9496]
[1754566534954,3.781,3817.6,3817.5,3.9496]
[1754566535256,22.067,3817.6,3817.5,3.9496]
[1754566535455,22.2017,3817.6,3817.5,4.47342]
[1754566535954,0.8548,3818.0,3817.5,3.9496]
[1754566536255,1.7782,3818.2,3818.0,0.52374]
[1754566536457,0.7887,3817.9,3817.2,3.2078]
[1754566536653,0.5732,3817.3,3817.2,5.33206]
[1754566537245,18.285,3817.5,3817.4,4.47343]
[1754566538147,18.8582,3817.5,3817.4,4.47343]
[1754566541462,19.001,3817.5,3817.4,4.47343]
[1754566542360,19.2295,3817.5,3817.4,4.47343]
[1754566543057,18.285,3817.5,3817.4,4.47343]
[1754566543460,3.781,3818.1,3818.0,1.0411]
[1754566543763,3.781,3818.1,3818.0,4.47335]
[1754566544159,4.1523,3818.1,3818.0,4.47335]
[1754566546365,5.0071,3818.1,3818.0,4.47335]
[1754566547759,4.1523,3818.1,3818.0,4.47335]
[1754566547965,19.2265,3818.1,3818.0,4.47335]
[1754566548855,0.9445,3818.1,3818.0,4.47335]
[1754566549355,19.2245,3818.1,3818.0,4.47335]
[1754566551066,20.0793,3818.1,3817.8,0.52377]
[1754566551256,1.7993,3817.8,3817.7,2.22729]
[1754566551456,20.0793,3817.8,3817.7,2.22729]
[1754566552163,20.0793,3817.8,3817.7,3.37489]
[1754566552559,20.0793,3817.8,3817.7,4.47339]
[1754566553362,19.96309225,3817.8,3817.7,4.47339]
[1754566554857,1.68309225,3817.8,3817.7,4.47339]
[1754566555161,4.1523,3818.1,3818.0,4.47335]
[1754566555365,22.4293,3818.1,3818.0,4.47335]
[1754566555568,23.1686619,3818.1,3818.0,4.47335]
[1754566555869,4.8916619,3818.1,3818.0,4.47335]
[1754566556063,22.4283,3818.1,3818.0,4.47335]
[1754566556261,23.1676619,3818.1,3818.0,4.47335]
[1754566557463,24.0224619,3818.1,3818.0,3.9496]
[1754566557664,1.7993,3818.0,3817.9,2.76986]
[1754566557861,19.9598619,3818.0,3817.9,2.76986]
[1754566558262,19.9598619,3818.0,3817.9,4.47336]
[1754566558958,19.0133619,3818.0,3817.9,4.47336]
[1754566559661,1.41050188,3818.7,3818.5,0.52368]
[1754566559862,1.41050188,3818.9,3818.7,3.53696]
[1754566560061,19.9129,3818.8,3818.7,4.35916]
[1754566560261,20.5119,3818.8,3818.7,4.35916]
[1754566560663,1.41050188,3819.1,3818.9,4.35913]
[1754566560866,0.4384,3819.2,3819.1,4.3591]
[1754566561060,18.7114,3819.5,3818.7,1.30913]
[1754566561260,3.8866,3819.3,3819.2,0.52358]
[1754566561467,3.054,3819.3,3819.2,4.35908]
[1754566562168,21.326,3819.3,3819.2,4.35908]
[1754566563067,22.1586,3819.3,3819.2,3.221]
[1754566563262,22.1586,3819.3,3819.2,2.7946]
[1754566563664,22.1586,3819.3,3819.2,1.9341]
[1754566564764,22.1586,3819.3,3819.2,1.3864]
[1754566565368,3.8866,3819.3,3819.2,1.3864]
[1754566565670,22.1546,3819.3,3819.2,1.3864]
[1754566565867,0.653,3819.2,3818.7,1.6827]
[1754566566061,1.0914,3818.9,3818.8,3.8355]
[1754566566265,19.3574,3818.9,3818.8,3.8355]
[1754566566974,19.3574,3818.9,3818.8,4.35914]
[1754566567173,19.9059,3818.9,3818.8,4.35914]
[1754566567767,20.5049,3818.9,3818.8,0.8222]
[1754566567967,19.8519,3818.9,3818.7,0.52365]
[1754566568173,3.8866,3818.8,3818.7,1.34585]
[1754566568472,2.054,3818.5,3818.4,3.8355]
[1754566568674,20.6638,3818.5,3818.4,3.8355]
[1754566568869,20.6638,3818.5,3818.4,4.35919]
[1754566569074,18.264,3818.5,3818.4,4.35919]
[1754566569370,0.4384,3818.9,3818.8,1.0409]
[1754566569566,19.5967,3818.9,3818.8,2.1528]
[1754566570073,19.5967,3818.9,3818.8,3.8355]
[1754566570374,4.5405,3819.4,3819.3,2.3605]
[1754566570569,23.6726,3819.4,3819.3,3.8355]
[1754566571870,25.24035452,3819.4,3819.3,3.8355]
[1754566572574,0.8691,3819.3,3818.9,1.6827]
[1754566572765,1.9857,3819.0,3818.9,4.35913]
[1754566572969,18.6994,3819.0,3818.9,4.35913]
[1754566573169,1.6399,3819.3,3819.2,4.35909]
[1754566573365,20.4628,3819.3,3819.2,4.35909]
[1754566573573,21.1979325,3819.3,3819.2,4.35909]
[1754566574578,2.9369325,3819.3,3819.2,4.35909]
[1754566574775,20.4628,3819.3,3819.2,4.35909]
[1754566574976,21.1979325,3819.3,3819.2,4.35909]